bitfinex/quotes_SOLUSD_20250722
["timestamp","ask_amount","ask_price","bid_price","bid_amount"]
[1753214809108,0.80216157,199.95,199.94,22.84]
[1753214809466,1e-08,199.96,199.94,31.24340736]
[1753214809678,1e-08,199.96,199.95,8.40340736]
[1753214809871,1e-08,199.96,199.95,13.40465767]
[1753214810473,1e-08,199.96,199.95,14.12465767]
[1753214810861,8.40340736,200.03,199.95,14.12465767]
[1753214810862,0.1,200.05,199.98,26.0]
[1753214811094,0.1,200.05,200.04,16.80681472]
[1753214811269,0.1,200.05,200.04,31.74330737]
[1753214811472,0.1,200.05,200.04,22.84]
[1753214811697,0.76,200.05,200.04,22.84]
[1753214812763,0.76,200.05,200.04,31.24340736]
[1753214813698,0.14216157,200.04,199.99,26.0]
[1753214813886,0.66,200.03,200.0,22.84]
[1753214814071,0.66,200.02,200.01,22.84]
[1753214814788,0.66,200.04,200.01,8.40340736]
[1753214814995,0.24216157,200.05,200.02,8.40340736]
[1753214814996,0.66,200.03,200.02,8.40340736]
[1753214815172,0.14216157,200.02,199.94,8.40340736]
[1753214815374,8.54556893,199.99,199.95,22.84]
[1753214815615,0.66,199.98,199.96,22.84]
[1753214815812,0.14216157,199.96,199.91,5.0322216]
[1753214816117,0.80216157,199.96,199.92,22.84]
[1753214816672,0.66,199.95,199.92,22.84]
[1753214817286,9.06340736,199.95,199.92,22.84]
[1753214817507,0.66,199.95,199.92,22.84]
[1753214818116,0.80216157,199.94,199.93,22.84]
[1753214818287,0.66,199.94,199.93,22.84]
[1753214818493,0.14216157,199.96,199.93,22.84]
[1753214818689,8.54556893,199.94,199.93,22.84]
[1753214818904,0.80216157,199.94,199.92,22.84]
[1753214819212,9.20556893,199.93,199.92,22.84]
[1753214819710,0.14216157,199.92,199.91,0.03]
[1753214819886,9.20556893,199.92,199.91,0.03]
[1753214820493,0.14216157,199.92,199.91,0.03]
[1753214820692,9.06340736,199.99,199.91,9.15340736]
[1753214820912,9.06340736,199.99,199.92,0.72]
[1753214821115,0.66,199.98,199.93,22.84]
[1753214821286,8.40340736,200.01,199.95,8.40340736]
[1753214821489,9.06340736,200.0,199.94,8.40340736]
[1753214821709,8.40340736,199.98,199.95,22.84]
[1753214821911,0.14216157,199.96,199.91,0.03]
[1753214822096,0.66,199.95,199.92,22.84]
[1753214822515,8.15467642,200.18,199.94,26.0]
[1753214822824,8.15467642,200.18,200.04,8.40340736]
[1753214822825,0.66,200.18,200.04,8.40340736]
[1753214822993,0.66,200.18,200.1,8.40340736]
[1753214823192,8.40340736,200.15,200.05,0.72]
[1753214823404,0.66,200.14,200.07,8.40340736]
[1753214823610,0.66,200.14,200.08,8.40340736]
[1753214823920,0.66,200.14,200.04,26.0]
[1753214824103,26.66,200.14,200.05,8.40340736]
[1753214824287,8.40340736,200.12,200.05,8.40340736]
[1753214824493,9.06340736,200.11,200.04,8.40340736]
[1753214824716,0.66,200.1,200.05,8.40340736]
[1753214824928,8.40340736,200.11,200.05,8.40340736]
[1753214825126,0.66,200.09,200.04,8.40340736]
[1753214825325,9.06340736,200.08,200.01,8.40340736]
[1753214825534,8.40340736,200.04,199.95,5.00125031]
[1753214825698,8.40340736,200.02,199.95,5.00125031]
[1753214825901,0.66,200.01,199.97,8.40340736]
[1753214826213,8.40340736,199.98,199.92,0.72]
[1753214826395,8.40340736,199.96,199.91,0.03]
[1753214826731,8.40340736,199.92,199.91,0.03]
[1753214826933,8.40340736,199.92,199.85,5.00355368]
[1753214826934,8.40340736,199.92,199.83,5.0041789]
[1753214827106,8.40340736,199.87,199.81,8.40340736]
[1753214827420,8.40340736,199.87,199.79,5.00525551]
[1753214827421,8.40340736,199.86,199.82,26.0]
[1753214827626,0.66,199.85,199.83,26.0]
[1753214827832,8.403407,200.09,199.84,8.7483]
[1753214828161,8.40340736,200.04,199.96,26.0]
[1753214828334,8.40340736,200.04,199.97,8.40340736]
[1753214828632,8.40340736,200.04,199.96,34.40340736]
[1753214828796,0.66,200.05,199.96,26.0]
[1753214828797,8.40340736,200.03,199.96,26.0]
[1753214828993,4.99800079,200.08,199.96,26.0]
[1753214828994,0.66,200.02,199.97,8.40340736]
[1753214829229,4.99800079,200.08,199.98,12.67071286]
[1753214829230,12.67071286,200.05,199.98,12.67071286]
[1753214829537,12.67071286,200.0,199.92,26.0]
[1753214829726,13.33071286,199.99,199.92,26.0]
[1753214830232,0.66,199.99,199.92,26.0]
[1753214830411,12.67071286,199.97,199.92,26.0]
[1753214830605,0.66,199.96,199.92,26.0]
[1753214830817,12.67071286,199.94,199.86,12.67071286]
[1753214831126,13.33071286,199.95,199.88,38.67071286]
[1753214831338,0.66,199.95,199.87,12.67071286]
[1753214831533,12.67071286,199.93,199.86,12.67071286]
[1753214832209,12.67071286,199.92,199.86,12.67071286]
[1753214832416,12.67071286,199.89,199.82,12.67071286]
[1753214832619,5.00189099,199.93,199.82,12.67071286]
[1753214832818,0.66,199.89,199.83,12.67071286]
[1753214833122,13.33071286,199.89,199.82,12.67071286]
[1753214833330,12.67071286,199.87,199.79,0.72]
[1753214833511,0.66,199.88,199.76,5.00576398]
[1753214833834,12.67071286,199.87,199.8,12.67071286]
[1753214834238,5.00350245,199.86,199.8,12.67071286]
[1753214834446,17.67400605,199.87,199.8,12.67071286]
[1753214835144,5.66329319,199.87,199.76,5.72576494]
[1753214835440,12.67071286,199.83,199.77,12.67071286]
[1753214835688,12.67071286,199.83,199.76,12.67071286]
[1753214835689,13.33071286,199.83,199.76,12.67071286]
[1753214835934,13.33071286,199.83,199.76,38.67071286]
[1753214836344,18.3350516,199.83,199.76,38.67071286]
[1753214836545,18.3350516,199.83,199.75,0.2]
[1753214836546,12.67071286,199.8,199.75,0.2]
[1753214836752,12.67071286,199.79,199.75,0.2]
[1753214837040,12.67071286,199.76,199.75,0.2]
[1753214837413,13.34071286,199.76,199.75,0.2]
[1753214837948,13.48287443,199.76,199.75,0.2]
[1753214838315,18.48888163,199.76,199.75,0.2]
[1753214838914,26.0,199.8,199.75,0.2]
[1753214838915,0.67,199.8,199.75,0.2]
[1753214839137,12.81287443,199.76,199.75,0.2]
[1753214839770,0.14216157,199.76,199.75,0.2]
[1753214840871,13.34071286,199.81,199.75,12.87071286]
[1753214841168,0.14216157,199.82,199.76,12.67071286]
[1753214841368,38.67071286,199.83,199.75,0.2]
[1753214841570,0.14216157,199.81,199.76,12.67071286]
[1753214841949,0.14216157,199.76,199.75,0.2]
[1753214842942,0.67,199.83,199.75,12.87071286]
[1753214843149,0.67,199.83,199.78,12.67071286]
[1753214843343,17.67446567,199.85,199.79,12.67071286]
[1753214843748,0.14216157,199.84,199.79,12.67071286]
[1753214843968,12.67071286,199.85,199.8,12.67071286]
[1753214844159,5.00352555,199.86,199.81,12.67071286]
[1753214844478,0.67,199.89,199.76,26.0]
[1753214844479,12.67071286,199.88,199.82,12.67071286]
[1753214844638,0.14216157,199.87,199.82,12.67071286]
[1753214844842,17.6737203,199.88,199.82,12.67071286]
[1753214845566,0.14216157,199.87,199.82,12.67071286]
[1753214846373,0.14216157,199.87,199.83,12.67071286]
[1753214846743,12.67071286,199.89,199.83,13.36071286]
[1753214846969,0.14216157,199.89,199.84,12.67071286]
[1753214847278,17.6733532,199.9,199.83,12.67071286]
[1753214847672,0.14216157,199.87,199.82,12.67071286]
[1753214847873,0.67,199.86,199.81,12.67071286]
[1753214848047,0.14216157,199.84,199.78,26.0]
[1753214848375,0.14216157,199.84,199.79,12.67071286]
[1753214848760,5.14623145,199.84,199.79,12.67071286]
[1753214849074,18.48694431,199.84,199.78,38.67071286]
[1753214849275,18.48694431,199.84,199.78,26.0]
[1753214849276,5.81623145,199.84,199.78,26.0]
[1753214849457,12.67071286,199.83,199.78,26.0]
[1753214849770,13.34071286,199.83,199.78,12.67071286]
[1753214850769,5.67430212,199.83,199.78,12.67071286]
[1753214852367,5.00430212,199.83,199.78,12.67071286]
[1753214853482,5.00430212,199.83,199.79,12.67071286]
[1753214853684,0.67,199.86,199.76,5.0057845]
[1753214853685,0.14216157,199.85,199.76,5.0057845]
[1753214853878,0.67,199.9,199.84,12.67071286]
[1753214854058,0.14216157,199.89,199.85,12.67071286]
[1753214854452,0.67,199.88,199.81,38.67071286]
[1753214854670,0.14216157,199.87,199.83,12.67071286]
[1753214854853,0.14216157,199.87,199.8,26.0]
[1753214855054,0.14216157,199.87,199.83,12.67071286]
[1753214856367,5.14546376,199.87,199.82,12.67071286]
[1753214857284,5.14546376,199.87,199.82,8.41144506]
[1753214857459,14.22690882,199.87,199.81,26.0]
[1753214857781,14.22690882,199.87,199.81,34.41144506]
[1753214858166,5.81546376,199.87,199.81,34.41144506]
[1753214858382,5.81546376,199.87,199.82,8.41144506]
[1753214859702,14.22690882,199.87,199.81,8.41144506]
[1753214859980,5.81546376,199.87,199.81,8.41144506]
[1753214860181,14.22690882,199.87,199.81,8.41144506]
[1753214862384,0.14216157,199.82,199.78,0.03]
[1753214862585,0.14216157,199.8,199.78,0.03]
[1753214863096,0.81216157,199.8,199.78,0.03]
[1753214863261,9.22360663,199.8,199.78,0.03]
[1753214863773,5.00525551,199.79,199.78,0.03]
[1753214863967,13.41670057,199.79,199.78,0.03]
[1753214864366,5.00525551,199.79,199.78,0.03]
[1753214864759,5.81741708,199.79,199.78,0.03]
[1753214864958,14.22886214,199.79,199.78,0.03]
[1753214865885,13.55886214,199.79,199.78,0.03]
[1753214866070,5.14741708,199.79,199.78,0.03]
[1753214866268,8.41144506,199.82,199.78,0.03]
[1753214866477,0.14216157,199.82,199.78,0.72]
[1753214866787,8.41144506,199.84,199.78,9.13144506]
[1753214867001,5.00325211,199.87,199.82,8.41144506]
[1753214867162,5.00250125,199.9,199.86,8.41144506]
[1753214867364,5.00218907,199.92,199.89,8.41144506]
[1753214867561,5.00177997,199.93,199.9,8.41144506]
[1753214867796,5.0010002,199.96,199.9,9.11144506]
[1753214868096,13.41244526,199.96,199.9,9.11144506]
[1753214868569,0.14216157,199.95,199.9,9.11144506]
[1753214868895,0.75,199.91,199.82,5.00450405]
[1753214869104,0.75,199.91,199.84,34.41144506]
[1753214869262,8.41144506,199.89,199.84,34.41144506]
[1753214869464,8.41144506,199.89,199.83,8.41144506]
[1753214869760,8.41144506,199.85,199.79,9.11144506]
[1753214870381,8.41144506,199.84,199.76,0.7]
[1753214870583,8.41144506,199.82,199.76,9.11144506]
[1753214870994,8.41144506,199.81,199.75,0.2]
[1753214871203,12.70373295,199.79,199.75,0.2]
[1753214871703,13.39373295,199.79,199.75,0.2]
[1753214871874,18.54115003,199.79,199.75,0.2]
[1753214873277,18.54115003,199.79,199.78,1e-08]
[1753214874988,31.24488298,199.79,199.78,1e-08]
[1753214875185,18.54115003,199.79,199.78,1e-08]
[1753214876375,42.58115003,199.79,199.78,1e-08]
[1753214876696,55.28488298,199.79,199.78,1e-08]
[1753214877197,26.0,199.76,199.72,0.2]
[1753214877387,12.84589452,199.73,199.72,0.2]
[1753214877768,13.53589452,199.73,199.72,1e-08]
[1753214878076,26.0,199.76,199.72,1e-08]
[1753214878287,13.53589452,199.73,199.72,1e-08]
[1753214878597,18.54265364,199.73,199.72,1e-08]
[1753214880002,0.14216157,199.72,199.71,1e-08]
[1753214880169,0.83216157,199.72,199.71,1e-08]
[1753214880502,18.54290433,199.72,199.71,1e-08]
[1753214880746,5.14917138,199.72,199.71,1e-08]
[1753214880997,12.70373295,199.79,199.71,13.40373296]
[1753214881167,12.70373295,199.83,199.77,12.70373295]
[1753214881367,12.70373295,199.83,199.78,0.7]
[1753214881599,12.70373295,199.79,199.71,6.57950001]
[1753214881787,12.70373295,199.78,199.72,12.70373295]
[1753214882098,0.14216157,199.78,199.73,13.40373295]
[1753214882399,12.84589452,199.74,199.71,1e-08]
[1753214882701,0.14216157,199.74,199.71,1e-08]
[1753214882997,0.14216157,199.74,199.71,0.70000001]
[1753214883193,5.1488375,199.74,199.71,1e-08]
[1753214883783,0.14216157,199.72,199.71,1e-08]
[1753214884813,17.85290433,199.72,199.71,1e-08]
[1753214885005,18.54290433,199.72,199.71,1e-08]
[1753214890121,42.46290433,199.72,199.71,1e-08]
[1753214890497,29.75917138,199.72,199.71,1e-08]
[1753214890731,42.46290433,199.72,199.71,1e-08]
[1753214892502,0.14216157,199.68,199.64,0.03]
[1753214892721,12.84589452,199.65,199.64,0.03]
[1753214893022,12.84589452,199.65,199.63,0.03]
[1753214893023,0.14216157,199.64,199.63,0.03]
[1753214893210,38.84589452,199.64,199.62,0.03]
[1753214893411,37.39589452,199.63,199.62,1e-08]
[1753214893622,24.69216157,199.63,199.62,1e-08]
[1753214893797,24.00216157,199.63,199.62,1e-08]
[1753214893996,26.0,199.68,199.62,13.40373296]
[1753214894224,26.0,199.68,199.63,12.70373295]
[1753214894436,0.14216157,199.66,199.62,1e-08]
[1753214894706,26.69,199.67,199.62,1e-08]
[1753214894707,12.70373295,199.63,199.62,1e-08]
[1753214894911,12.84589452,199.63,199.62,1e-08]
[1753214895129,13.53589452,199.63,199.62,1e-08]
[1753214895333,35.26783966,199.63,199.62,1e-08]
[1753214896233,40.2771068,199.63,199.62,1e-08]
[1753214896810,31.15142871,199.63,199.62,1e-08]
[1753214897025,5.00926714,199.63,199.62,0.70000001]
[1753214897320,26.0,199.66,199.62,0.70000001]
[1753214897532,0.14216157,199.65,199.62,0.70000001]
[1753214897692,5.00826363,199.67,199.63,9.13567809]
[1753214897900,12.51770768,199.72,199.66,8.43567809]
[1753214897901,32.23567809,199.72,199.66,8.43567809]
[1753214898195,5.00726052,199.71,199.67,0.7]
[1753214898400,0.14216157,199.7,199.68,0.7]
[1753214898633,5.00726052,199.71,199.68,0.7]
[1753214899126,0.14216157,199.7,199.68,0.7]
[1753214899305,5.00726052,199.71,199.68,0.7]
[1753214899504,0.14216157,199.7,199.68,0.7]
[1753214899832,5.00726052,199.71,199.69,0.7]
[1753214900002,0.14216157,199.7,199.69,0.7]
[1753214900514,5.00726052,199.71,199.69,0.7]
[1753214900747,0.14216157,199.7,199.69,0.7]
[1753214901032,5.0060072,199.76,199.69,13.41238754]
[1753214901329,5.0060072,199.76,199.71,12.71238754]
[1753214901507,5.0060072,199.76,199.71,0.7]
[1753214901710,12.71238754,199.75,199.71,0.7]
[1753214902121,0.14216157,199.74,199.71,0.7]
[1753214902550,5.14871991,199.74,199.72,0.7]
[1753214902709,5.14871991,199.74,199.65,26.0]
[1753214902910,5.14871991,199.74,199.7,12.71238754]
[1753214903120,5.00550605,199.78,199.73,12.71238754]
[1753214903436,0.14216157,199.77,199.74,0.7]
[1753214903647,5.00550605,199.78,199.75,0.7]
[1753214903938,5.00550605,199.78,199.76,0.7]
[1753214904111,0.06,199.79,199.74,12.71238754]
[1753214904435,0.14216157,199.78,199.77,0.7]
[1753214904938,0.06,199.79,199.77,0.7]
[1753214905439,0.06,199.79,199.78,0.7]
[1753214906521,0.06,199.79,199.74,6.0895]
[1753214906821,0.14216157,199.75,199.7,26.7]
[1753214907035,0.14216157,199.75,199.71,0.7]
[1753214907222,0.14216157,199.75,199.7,38.71238754]
[1753214907416,0.14216157,199.75,199.72,0.7]
[1753214907827,12.85454911,199.75,199.72,0.7]
[1753214908227,0.14216157,199.75,199.72,0.7]
[1753214908430,0.14216157,199.75,199.73,0.7]
[1753214909324,0.06,199.79,199.74,13.41238754]
[1753214909552,0.06,199.79,199.74,0.7]
[1753214909753,0.06,199.79,199.75,13.41238754]
[1753214909919,0.06,199.79,199.78,12.71238754]
[1753214910329,12.71238754,199.88,199.78,14.99498754]
[1753214910534,5.00250125,199.9,199.78,14.99498754]
[1753214910535,12.71238754,199.85,199.8,6.393]
[1753214910790,17.50875437,199.9,199.81,13.41238754]
[1753214910939,12.71238754,199.87,199.81,13.41238754]
[1753214911118,12.71238754,199.84,199.78,1.5826]
[1753214911325,0.14216157,199.83,199.78,14.29498754]
[1753214911623,0.14216157,199.83,199.78,14.99498754]
[1753214911948,0.14216157,199.83,199.79,0.7]
[1753214912159,0.14216157,199.81,199.75,32.393]
[1753214912445,0.14216157,199.81,199.75,6.393]
[1753214912446,0.14216157,199.78,199.75,6.393]
[1753214912746,0.14216157,199.78,199.75,7.093]
[1753214912951,5.00499795,199.81,199.75,19.10538754]
[1753214913128,26.0,199.86,199.78,12.71238754]
[1753214913129,12.71238754,199.84,199.78,12.71238754]
[1753214913335,0.14216157,199.83,199.79,0.7]
[1753214914057,0.14216157,199.83,199.76,0.7]
[1753214914223,0.14216157,199.81,199.76,0.7]
[1753214914430,12.71238754,199.8,199.76,0.7]
[1753214914640,12.71238754,199.8,199.77,0.7]
[1753214915566,12.85454911,199.81,199.77,0.7]
[1753214915766,12.71238754,199.79,199.75,6.393]
[1753214916366,5.00550605,199.78,199.75,6.393]
[1753214916569,5.00550605,199.78,199.75,7.093]
[1753214917639,17.71789359,199.78,199.73,27.5408]
[1753214917942,17.71789359,199.78,199.74,0.7]
[1753214918737,5.00550605,199.78,199.74,0.7]
[1753214918964,17.71789359,199.78,199.74,0.7]
[1753214919149,13.42561591,199.78,199.74,0.7]
[1753214919981,5.00550605,199.78,199.74,0.7]
[1753214920786,5.00550605,199.78,199.75,0.7]
[1753214921068,5.00550605,199.78,199.73,8.42010986]
[1753214921069,38.51080813,199.83,199.77,8.42010986]
[1753214921372,39.16823809,199.91,199.73,35.12010986]
[1753214921373,8.42010986,199.79,199.73,35.12010986]
[1753214921752,5.00550605,199.78,199.73,35.12010986]
[1753214922077,5.00550605,199.78,199.74,0.7]
[1753214922379,5.00550605,199.78,199.75,0.7]
[1753214923753,13.56752694,199.79,199.75,0.7]
[1753214923956,13.56752694,199.79,199.73,8.42010986]
[1753214924270,14.27752694,199.79,199.73,8.42010986]
[1753214925182,14.27752694,199.79,199.72,0.7]
[1753214925183,0.14216157,199.78,199.72,0.7]
[1753214925481,0.14216157,199.76,199.74,0.03]
[1753214925663,0.14216157,199.77,199.74,0.03]
[1753214926068,5.0060072,199.76,199.74,0.03]
[1753214926847,0.14216157,199.77,199.75,0.7]
[1753214927172,20.93165042,199.82,199.76,9.12010986]
[1753214927485,0.14216157,199.81,199.76,9.12010986]
[1753214927661,5.14691608,199.81,199.77,0.68]
[1753214927990,5.14691608,199.81,199.78,0.68]
[1753214928166,5.00475451,199.81,199.78,0.68]
[1753214928669,13.42486437,199.81,199.76,8.42010986]
[1753214928867,13.42486437,199.81,199.77,0.68]
[1753214929361,8.42010986,199.79,199.74,0.03]
[1753214929562,0.14216157,199.78,199.74,0.03]
[1753214929870,8.56227143,199.78,199.74,0.03]
[1753214930077,8.56227143,199.76,199.74,0.03]
[1753214930372,0.67,199.77,199.74,0.03]
[1753214930373,13.56852925,199.75,199.74,0.03]
[1753214930757,14.23852925,199.75,199.74,0.03]
[1753214930978,13.73852925,199.75,199.74,0.03]
[1753214931179,13.73852925,199.75,199.74,1e-08]
[1753214931562,8.56227143,199.71,199.7,1e-08]
[1753214931966,9.23227143,199.71,199.7,1e-08]
[1753214932163,14.23953195,199.71,199.7,1e-08]
[1753214933258,13.56953195,199.71,199.7,1e-08]
[1753214933461,5.14942209,199.71,199.7,1e-08]
[1753214933663,13.56953195,199.71,199.7,1e-08]
[1753214938684,5.14942209,199.71,199.7,1e-08]
[1753214938889,0.14216157,199.74,199.7,0.68000001]
[1753214939062,5.14867003,199.74,199.7,0.68000001]
[1753214939265,5.00650846,199.74,199.71,0.68]
[1753214939566,0.67,199.77,199.72,0.68]
[1753214939567,8.42010986,199.77,199.72,0.68]
[1753214939776,23.22,199.79,199.72,0.68]
[1753214939777,5.00550605,199.78,199.73,0.68]
[1753214939991,5.00550605,199.78,199.74,9.10010986]
[1753214940151,5.00550605,199.78,199.75,0.68]
[1753214940352,8.42010986,199.77,199.71,15.26040986]
[1753214940831,0.14216157,199.76,199.72,8.42010986]
[1753214940998,5.00550605,199.78,199.73,8.42010986]
[1753214941375,5.00550605,199.78,199.74,0.68]
[1753214941679,0.14216157,199.77,199.74,0.68]
[1753214942584,0.14216157,199.77,199.72,9.10010986]
[1753214942786,0.14216157,199.77,199.73,0.68]
[1753214943485,5.14811756,199.77,199.73,0.68]
[1753214946495,0.14216157,199.81,199.75,8.42010986]
[1753214946695,5.00475451,199.81,199.76,0.68]
[1753214946879,5.00275151,199.89,199.8,8.42010986]
[1753214947199,0.06,199.9,199.88,8.42010986]
[1753214947382,8.48010986,199.9,199.83,7.0647]
[1753214947583,8.42010986,199.89,199.83,15.48480986]
[1753214947903,0.06,199.9,199.87,8.42010986]
[1753214948083,0.06,199.9,199.84,1.18040032]
[1753214948084,0.06,199.9,199.89,8.42010986]
[1753214948287,0.06,199.9,199.89,9.10010986]
[1753214948796,0.06,199.9,199.85,9.10010986]
[1753214948999,8.62227143,199.9,199.85,0.68]
[1753214949799,5.00275151,199.89,199.85,0.68]
[1753214950285,13.42286137,199.89,199.84,8.42010986]
[1753214950598,0.81216157,199.88,199.81,0.68]
[1753214950803,0.14216157,199.86,199.82,26.0]
[1753214950978,0.14216157,199.86,199.81,9.10010986]
[1753214951911,5.00375281,199.85,199.81,9.10010986]
[1753214952316,5.00375281,199.85,199.82,0.68]
[1753214952616,5.00345983,199.87,199.83,9.10010986]
[1753214952792,5.00345983,199.87,199.84,0.68]
[1753214952995,8.62227143,199.91,199.86,8.42010986]
[1753214953514,0.20216157,199.91,199.87,0.68]
[1753214953698,0.14216157,199.89,199.86,8.42010986]
[1753214954019,0.14216157,199.89,199.81,26.0]
[1753214954020,5.00350245,199.86,199.81,26.0]
[1753214954206,8.56227143,199.85,199.79,9.10010986]
[1753214954415,5.00350245,199.86,199.81,8.42010986]
[1753214954589,0.14216157,199.85,199.78,34.7243]
[1753214954784,8.56227143,199.85,199.79,8.42010986]
[1753214955304,0.14216157,199.85,199.79,8.42010986]
[1753214955513,8.56227143,199.85,199.79,8.42010986]
[1753214955695,8.42010986,199.84,199.78,17.14440986]
[1753214956019,8.56227143,199.83,199.78,0.68]
[1753214956196,8.42010986,199.82,199.78,0.68]
[1753214956396,0.14216157,199.83,199.78,0.68]
[1753214956616,8.56227143,199.83,199.78,0.68]
[1753214956797,8.56227143,199.83,199.78,9.10010986]
[1753214957615,8.56227143,199.83,199.79,0.65]
[1753214957817,5.00450405,199.82,199.79,0.65]
[1753214958117,8.56227143,199.81,199.76,26.0]
[1753214958414,0.14216157,199.81,199.77,9.07010986]
[1753214958622,0.14216157,199.81,199.78,0.65]
[1753214959225,5.00450405,199.82,199.78,8.42010986]
[1753214959433,5.00450405,199.82,199.79,0.65]
[1753214959610,13.42461391,199.82,199.76,26.0]
[1753214959810,5.00450405,199.82,199.77,8.42010986]
[1753214960008,5.00450405,199.82,199.78,0.65]
[1753214960416,5.00450405,199.82,199.79,0.65]
[1753214961506,5.00350245,199.86,199.81,8.42010986]
[1753214961719,5.00350245,199.86,199.82,0.65]
[1753214961930,5.00350245,199.86,199.83,0.65]
[1753214962233,13.42361231,199.86,199.8,32.27010986]
[1753214962405,8.42010986,199.84,199.78,8.42010986]
[1753214962600,0.14216157,199.85,199.79,32.27010986]
[1753214962904,0.14216157,199.85,199.8,9.07010986]
[1753214963362,0.14216157,199.85,199.81,9.07010986]
[1753214963533,8.42010986,199.87,199.81,9.07010986]
[1753214963829,8.42010986,199.86,199.8,8.42010986]
[1753214964006,8.42010986,199.85,199.79,31.62010986]
[1753214964534,8.42010986,199.85,199.8,0.65]
[1753214964729,8.42010986,199.85,199.81,0.65]
[1753214965232,0.14216157,199.85,199.81,0.65]
[1753214965620,13.56625596,199.85,199.81,0.65]
[1753214965824,13.56625596,199.85,199.79,31.62010986]
[1753214966327,13.56625596,199.85,199.79,32.27010986]
[1753214966724,13.56625596,199.85,199.79,9.07010986]
[1753214966932,13.56625596,199.85,199.79,32.27010986]
[1753214967102,13.56625596,199.85,199.79,9.07010986]
[1753214967308,13.56625596,199.85,199.79,32.27010986]
[1753214967608,5.00450405,199.82,199.78,23.2]
[1753214967811,5.00450405,199.82,199.76,0.65]
[1753214967812,8.42010986,199.81,199.76,0.65]
[1753214968014,9.28227143,199.8,199.76,23.2]
[1753214968231,8.42010986,199.8,199.76,23.2]
[1753214968530,0.14216157,199.81,199.77,0.65]
[1753214969633,0.14216157,199.79,199.76,23.2]
[1753214969817,14.14511486,199.8,199.72,26.0]
[1753214969818,8.56227143,199.77,199.72,26.0]
[1753214970022,9.28227143,199.77,199.72,49.2]
[1753214970226,9.28227143,199.77,199.72,49.85]
[1753214970227,8.42010986,199.76,199.72,49.85]
[1753214970419,0.14216157,199.77,199.72,23.2]
[1753214970624,8.56227143,199.77,199.73,0.65]
[1753214970937,8.42010986,199.75,199.71,0.65]
[1753214971112,8.42010986,199.75,199.71,23.18]
[1753214971319,9.14010986,199.75,199.71,23.18]
[1753214971640,5.0060072,199.76,199.71,32.25010986]
[1753214972010,5.0060072,199.76,199.71,23.83]
[1753214972605,5.0060072,199.76,199.71,23.18]
[1753214972826,13.42611706,199.76,199.72,0.65]
[1753214973738,13.42611706,199.76,199.71,23.18]
[1753214973914,13.42611706,199.76,199.71,23.83]
[1753214974339,13.42611706,199.76,199.71,0.65]
[1753214974545,14.14611706,199.76,199.71,23.83]
[1753214975105,5.0060072,199.76,199.71,23.83]
[1753214975535,5.7260072,199.76,199.71,23.83]
[1753214976648,5.00507258,199.8,199.75,8.42010986]
[1753214976936,8.42010986,199.77,199.73,23.18]
[1753214977139,0.14216157,199.78,199.74,0.65]
[1753214977317,0.14216157,199.78,199.75,0.65]
[1753214977516,13.4247615,199.82,199.77,8.42010986]
[1753214977824,0.06,199.85,199.81,8.42010986]
[1753214978028,0.06,199.85,199.84,8.42010986]
[1753214978368,0.06,199.85,199.82,9.07010986]
[1753214978543,0.06,199.85,199.79,7.5839]
[1753214978544,0.72,199.84,199.79,23.18]
[1753214978838,0.14216157,199.83,199.79,23.18]
[1753214979006,0.14216157,199.83,199.8,0.65]
[1753214979610,5.00416065,199.84,199.8,0.65]
[1753214980014,5.00416065,199.84,199.79,23.18]
[1753214980015,9.28227143,199.83,199.79,23.18]
[1753214980213,8.42010986,199.82,199.79,23.18]
[1753214980526,0.86216157,199.83,199.77,9.07010986]
[1753214980720,0.14216157,199.83,199.78,8.42010986]
[1753214980924,0.14216157,199.83,199.79,0.65]
[1753214981240,5.00416065,199.84,199.8,0.65]
[1753214981446,0.14216157,199.83,199.78,8.42010986]
[1753214981647,5.14655605,199.83,199.78,9.07010986]
[1753214981943,9.14010986,199.82,199.78,23.18]
[1753214982634,9.14010986,199.82,199.77,26.0]